bitfinex-derivatives/quotes_BNBF0:USTF0_20250128
["timestamp","ask_amount","ask_price","bid_price","bid_amount"]
[1738083108342,1.55773234,670.8,669.51,1.11410559]
[1738083108843,0.27409558,670.79,669.51,1.11410559]
[1738083109143,1.55773234,670.8,669.51,1.11410559]
[1738083109344,0.27409353,670.79,669.51,1.11410559]
[1738083109943,0.27409353,670.79,669.54,1.11410559]
[1738083110744,1.55773234,670.8,669.54,1.11410559]
[1738083111546,0.57227528,670.79,669.54,1.11410559]
[1738083111747,0.57227973,670.78,669.54,1.11410559]
[1738083111945,0.27411938,670.77,669.54,1.11410559]
[1738083112148,0.29816924,670.76,669.54,1.11410559]
[1738083112347,0.27411938,670.75,669.54,1.11410559]
[1738083112547,0.29817813,670.74,669.54,1.11410559]
[1738083115043,1.55792411,670.73,669.54,1.11410559]
[1738083115244,1.55792411,670.73,669.46,0.29874824]
[1738083115644,0.29818702,670.72,669.46,0.29874824]
[1738083118855,0.27418962,670.71,669.46,0.29874824]
[1738083119048,0.29819591,670.7,669.46,0.29874824]
[1738083119455,0.2741985,670.69,669.46,0.29874824]
[1738083119754,1.55792411,670.73,669.46,0.29874824]
[1738083119755,0.2982048,670.68,669.46,0.29874824]
[1738083120756,0.27420968,670.67,669.46,0.29874824]
[1738083120952,0.29821369,670.66,669.46,0.29874824]
[1738083121153,0.27420968,670.65,669.46,0.29874824]
[1738083121455,0.29821369,670.66,669.46,0.29874824]
[1738083121656,0.27429414,670.65,669.46,0.29874824]
[1738083121956,0.29821369,670.66,669.35,1.11410559]
[1738083122156,0.27432119,670.64,669.35,1.11410559]
[1738083122351,0.27432119,670.65,669.35,1.11410559]
[1738083122748,0.27432801,670.64,669.35,1.11410559]
[1738083123253,0.27432801,670.63,669.35,1.11410559]
[1738083123452,0.27432801,670.65,669.35,1.11410559]
[1738083123651,0.27432801,670.64,669.35,1.11410559]
[1738083123855,0.27432801,670.65,669.35,1.11410559]
[1738083124454,0.27432801,670.65,669.08,1.11410559]
[1738083124655,0.27432801,670.64,669.08,1.11410559]
[1738083124961,0.27432801,670.63,669.08,1.11410559]
[1738083125157,0.27432801,670.62,669.08,1.11410559]
[1738083125358,0.27432801,670.61,669.08,1.11410559]
[1738083125554,0.27432801,670.6,669.08,1.11410559]
[1738083125759,0.27432801,670.61,669.08,1.11410559]
[1738083125960,1.55937849,670.62,663.26,7.46079107]
[1738083125961,0.27432801,670.6,668.75,1.11410559]
[1738083126155,0.27432801,670.61,668.75,1.11410559]
[1738083126355,0.27432801,670.6,668.75,1.11410559]
[1738083126558,0.27432801,670.59,668.75,1.11410559]
[1738083126753,0.27432801,670.61,668.75,1.11410559]
[1738083126954,0.27432801,670.6,668.75,1.11410559]
[1738083127156,0.27432801,670.61,668.75,1.11410559]
[1738083127459,0.27432801,670.6,668.75,1.11410559]
[1738083127659,0.27432801,670.59,668.75,1.11410559]
[1738083127851,0.2745461,670.58,668.75,1.11410559]
[1738083128057,0.2745461,670.57,668.75,1.11410559]
[1738083128253,0.2745461,670.56,668.75,1.11410559]
[1738083128455,0.2745461,670.55,668.75,1.11410559]
[1738083128654,0.2745461,670.54,668.75,1.11410559]
[1738083128959,0.2745461,670.53,668.75,1.11410559]
[1738083129160,0.2745461,670.52,668.75,1.11410559]
[1738083129360,0.2745461,670.51,668.75,1.11410559]
[1738083129663,0.2745461,670.5,667.4,1.11410559]
[1738083129956,0.2745461,670.49,667.55,0.29960302]
[1738083130160,0.2745461,670.48,667.55,0.29960302]
[1738083130460,0.2745461,670.47,667.55,0.29960302]
[1738083130661,0.2745461,670.46,667.55,0.29960302]
[1738083130855,0.2745461,670.45,667.55,0.29960302]
[1738083131055,1.55937849,670.62,667.55,0.29960302]
[1738083131258,0.27455939,670.44,667.55,0.29960302]
[1738083131459,0.27455939,670.43,667.55,0.29960302]
[1738083131760,0.27455939,670.42,667.55,0.29960302]
[1738083131962,0.27455939,670.41,667.55,0.29960302]
[1738083132362,0.27455939,670.4,667.55,0.29960302]
[1738083132567,0.27455939,670.39,667.55,0.29960302]
[1738083132862,0.27455939,670.38,667.55,0.29960302]
[1738083133159,0.27455939,670.37,667.55,0.29960302]
[1738083133558,0.27455939,670.36,667.55,0.29960302]
[1738083133860,0.27455939,670.35,667.55,0.29960302]
[1738083134161,0.27455939,670.34,667.55,0.29960302]
[1738083134461,0.27455939,670.33,667.55,0.29960302]
[1738083134661,0.27455939,670.32,667.55,0.29960302]
[1738083134857,0.27455939,670.31,667.55,0.29960302]
[1738083135062,0.27455939,670.3,667.55,0.29960302]
[1738083135360,0.27455939,670.29,667.55,0.29960302]
[1738083135556,0.29838721,670.27,667.55,0.29960302]
[1738083135761,0.27455939,670.26,667.55,0.29960302]
[1738083136056,0.27455939,670.25,667.55,0.29960302]
[1738083136255,0.29840502,670.23,667.55,0.29960302]
[1738083136460,0.27455939,670.22,667.55,0.29960302]
[1738083136659,0.27455939,670.21,667.55,0.29960302]
[1738083136855,0.29842283,670.19,667.55,0.29960302]
[1738083137061,0.27455939,670.18,667.55,0.29960302]
[1738083137363,0.27455939,670.17,667.55,0.29960302]
[1738083137560,0.27455939,670.16,667.55,0.29960302]
[1738083137763,0.27455939,670.15,667.55,0.29960302]
[1738083138061,0.27455939,670.14,667.55,0.29960302]
[1738083138262,0.29842283,670.19,667.55,0.29960302]
[1738083138454,0.27449171,670.18,667.55,0.29960302]
[1738083138660,0.27449171,670.17,667.55,0.29960302]
[1738083138857,0.27449171,670.16,667.55,0.29960302]
[1738083139060,0.2984451,670.14,667.55,0.29960302]
[1738083139260,0.27449171,670.13,667.55,0.29960302]
[1738083139660,0.29845846,670.11,667.55,0.29960302]
[1738083139860,0.27449171,670.1,667.55,0.29960302]
[1738083140158,0.29847182,670.08,667.55,0.29960302]
[1738083140359,0.27449171,670.07,667.55,0.29960302]
[1738083140561,0.29848518,670.05,667.55,0.29960302]
[1738083140761,0.27449171,670.04,667.55,0.29960302]
[1738083140960,0.29849855,670.02,667.55,0.29960302]
[1738083141163,0.27449171,670.01,667.55,0.29960302]
[1738083141556,0.29851191,669.99,667.55,0.29960302]
[1738083141761,0.27449171,669.98,667.55,0.29960302]
[1738083142462,0.29851191,669.99,667.55,0.29960302]
[1738083142463,0.27449171,669.97,667.55,0.29960302]
[1738083142762,0.27449171,669.96,667.55,0.29960302]
[1738083143163,0.27449171,669.95,667.55,0.29960302]
[1738083143464,0.29853865,669.93,667.55,0.29960302]
[1738083144057,0.2745896,669.92,667.55,0.29960302]
[1738083144462,0.29855202,669.9,667.55,0.29960302]
[1738083145065,0.27457749,669.89,667.55,0.29960302]
[1738083145263,0.29855202,669.9,667.55,0.29960302]
[1738083145264,0.27457749,669.88,667.55,0.29960302]
[1738083145564,0.29856985,669.86,667.55,0.29960302]
[1738083145765,0.27457749,669.85,667.55,0.29960302]
[1738083145965,0.27457749,669.84,667.55,0.29960302]
[1738083146161,0.29858768,669.82,667.55,0.29960302]
[1738083146368,0.27457749,669.81,667.55,0.29960302]
[1738083146571,0.29858768,669.82,667.55,0.29960302]
[1738083146868,0.27459971,669.81,667.55,0.29960302]
[1738083147067,0.27459971,669.8,667.55,0.29960302]
[1738083147269,0.27459971,669.79,667.55,0.29960302]
[1738083147470,0.27459971,669.78,667.55,0.29960302]
[1738083147669,0.27459971,669.77,667.55,0.29960302]
[1738083147867,0.27459971,669.76,667.55,0.29960302]
[1738083148068,0.27459971,669.75,667.55,0.29960302]
[1738083148469,0.27459971,669.74,667.55,0.29960302]
[1738083148664,0.27459971,669.73,667.55,0.29960302]
[1738083148872,0.27459971,669.72,667.55,0.29960302]
[1738083149071,0.27459971,669.81,667.55,0.29960302]
[1738083149372,0.27459971,669.8,667.55,0.29960302]
[1738083149671,0.27459971,669.79,667.55,0.29960302]
[1738083149970,0.29858768,669.82,667.55,0.29960302]
[1738083150170,0.27462442,669.81,667.55,0.29960302]
[1738083151274,0.27462442,669.8,667.57,1.11410559]
[1738083151572,0.27462442,669.79,667.57,1.11410559]
[1738083151772,0.27467045,669.78,667.57,1.11410559]
[1738083151972,0.27467045,669.77,667.57,1.11410559]
[1738083152167,0.27467045,669.76,667.57,1.11410559]
[1738083152373,0.27467045,669.75,667.57,1.11410559]
[1738083152674,0.27467045,669.74,667.57,1.11410559]
[1738083152876,0.27467045,669.73,667.57,1.11410559]
[1738083153072,0.27467045,669.72,667.57,1.11410559]
[1738083153270,0.29858768,669.82,667.57,1.11410559]
[1738083153468,0.27467889,669.81,667.57,1.11410559]
[1738083153672,0.27467889,669.8,667.57,1.11410559]
[1738083153974,0.27467889,669.79,667.57,1.11410559]
[1738083154174,0.27467889,669.78,667.58,1.11410559]
[1738083154371,0.27467889,669.81,667.58,1.11410559]
[1738083154568,0.27467889,669.8,667.58,1.11410559]
[1738083154771,0.27467889,669.79,667.58,1.11410559]
[1738083155069,0.27467889,669.81,667.58,1.11410559]
[1738083155273,0.27467889,669.8,667.58,1.11410559]
[1738083155472,0.27467889,669.79,667.58,1.11410559]
[1738083155675,0.27467889,669.78,667.58,1.11410559]
[1738083155875,0.27467889,669.77,667.58,1.11410559]
[1738083156079,0.29861888,669.75,667.6,0.29958058]
[1738083156377,0.27467889,669.74,667.6,0.29958058]
[1738083156672,0.29861888,669.75,667.6,0.29958058]
[1738083156867,0.27471397,669.74,667.6,0.29958058]
[1738083157068,0.27471397,669.73,667.6,0.29958058]
[1738083157275,0.27471397,669.72,667.6,0.29958058]
[1738083157474,0.27471397,669.71,667.6,0.29958058]
[1738083157667,0.27471397,669.7,667.6,0.29958058]
[1738083157868,0.27471397,669.69,667.6,0.29958058]
[1738083158076,0.27471397,669.68,667.8,1.11410559]
[1738083158274,0.27471397,669.67,667.8,1.11410559]
[1738083158576,0.27471558,669.66,667.8,1.11410559]
[1738083158777,0.27471558,669.65,667.8,1.11410559]
[1738083158977,0.27471558,669.64,667.8,1.11410559]
[1738083159170,0.27471558,669.63,667.8,1.11410559]
[1738083159374,0.29868132,669.61,667.81,0.29948638]
[1738083159575,0.27471558,669.6,667.81,0.29948638]
[1738083159779,0.27471558,669.59,667.81,0.29948638]
[1738083159976,0.27471558,669.58,667.81,0.29948638]
[1738083160173,0.27471558,669.57,667.81,0.29948638]
[1738083160477,0.29868132,669.61,667.81,0.29948638]
[1738083160478,0.27471558,669.56,667.81,0.29948638]
[1738083160678,0.29871254,669.54,667.81,0.29948638]
[1738083160979,0.27471558,669.53,667.81,0.29948638]
[1738083161178,0.29872593,669.51,667.81,0.29948638]
[1738083161380,0.27471558,669.5,667.81,0.29948638]
[1738083161571,0.29873932,669.48,667.81,0.29948638]
[1738083161777,0.27471558,669.47,667.81,0.29948638]
[1738083161979,0.2987527,669.45,667.81,0.29948638]
[1738083162177,0.27471558,669.44,667.81,0.29948638]
[1738083162579,0.57347721,669.43,667.81,0.29948638]
[1738083162976,0.27471558,669.42,667.81,0.29948638]
[1738083163175,0.57348613,669.41,667.81,0.29948638]
[1738083163383,0.27471558,669.4,667.81,0.29948638]
[1738083163683,0.27478846,669.39,667.81,0.29948638]
[1738083163876,0.5735724,669.38,667.81,0.29948638]
[1738083164077,0.57357687,669.37,667.81,0.29948638]
[1738083164282,0.57358133,669.36,667.81,0.29948638]
[1738083164481,0.27478846,669.35,667.81,0.29948638]
[1738083165177,0.27478846,669.34,667.81,0.29948638]
[1738083165576,0.27478846,669.33,667.81,0.29948638]
[1738083165778,0.27478846,669.32,667.81,0.29948638]
[1738083165981,0.27478846,669.31,667.81,0.29948638]
[1738083166183,0.27478846,669.3,667.81,0.29948638]
[1738083166381,0.27478846,669.29,667.81,0.29948638]
[1738083166585,0.27478846,669.28,667.81,0.29948638]
[1738083166785,0.27478846,669.27,667.81,0.29948638]
[1738083167083,0.27478846,669.26,667.81,0.29948638]
[1738083167279,0.27478846,669.25,667.81,0.29948638]
[1738083167482,0.27478846,669.24,667.81,0.29948638]
[1738083167677,0.27478846,669.23,667.81,0.29948638]
[1738083167885,0.27478846,669.24,667.81,0.29948638]
[1738083168083,0.27478846,669.23,667.81,0.29948638]
[1738083168278,0.27478846,669.24,667.81,0.29948638]
[1738083168478,0.27478846,669.23,667.81,0.29948638]
[1738083168884,0.27478846,669.22,667.81,0.29948638]
[1738083169185,0.27478846,669.21,667.81,0.29948638]
[1738083169478,0.27478846,669.2,667.81,0.29948638]
[1738083169684,0.27478846,669.24,667.81,0.29948638]
[1738083169884,0.27478846,669.19,667.81,0.29948638]
[1738083170079,0.27478846,669.18,667.81,0.29948638]
[1738083170284,0.27478846,669.17,667.81,0.29948638]
[1738083170479,0.27478846,669.17,666.41,1.11410559]
[1738083170682,0.27478846,669.16,666.54,0.30005701]
[1738083170882,0.27478846,669.15,666.54,0.30005701]
[1738083171085,0.27478846,669.24,666.54,0.30005701]
[1738083171284,0.27478846,669.23,666.54,0.30005701]
[1738083171485,0.27478846,669.22,666.54,0.30005701]
[1738083171683,0.27478846,669.21,666.54,0.30005701]
[1738083171986,0.27478846,669.2,666.54,0.30005701]
[1738083172281,0.27478846,669.19,666.54,0.30005701]
[1738083172482,1.5621493,669.25,666.54,0.30005701]
[1738083172483,0.27478846,669.24,666.54,0.30005701]
[1738083172679,0.27478846,669.23,666.54,0.30005701]
[1738083172884,0.27478846,669.24,666.54,0.30005701]
[1738083173487,0.27478846,669.23,666.54,0.30005701]
[1738083173685,1.5621493,669.25,666.54,0.30005701]
[1738083173886,0.27487812,669.24,666.54,0.30005701]
[1738083174188,0.27487812,669.23,666.76,1.11410559]
[1738083174485,0.27487812,669.22,666.76,1.11410559]
[1738083174687,0.27487812,669.24,666.76,1.11410559]
[1738083174887,0.27487812,669.23,666.76,1.11410559]
[1738083175084,0.27487812,669.22,666.76,1.11410559]
[1738083175284,0.27487812,669.24,666.76,1.11410559]
[1738083177292,0.27487812,669.24,666.68,1.11410559]
[1738083178486,0.27487812,669.23,666.68,1.11410559]
[1738083178684,0.27487812,669.24,666.68,1.11410559]
[1738083178891,0.27487812,669.23,666.68,1.11410559]
[1738083179091,0.27487812,669.24,666.68,1.11410559]
[1738083179292,0.27487812,669.23,666.68,1.11410559]
[1738083179491,0.27487812,669.24,666.68,1.11410559]
[1738083179687,0.27487812,669.22,666.68,1.11410559]
[1738083179892,0.27487812,669.23,666.68,1.11410559]
[1738083180193,0.27487812,669.22,666.68,1.11410559]
[1738083180397,0.27487812,669.24,666.68,1.11410559]
[1738083180590,1.5621493,669.25,666.68,1.11410559]
[1738083180786,1.5621493,669.25,666.54,0.30005701]
[1738083180787,1.5621493,669.25,666.92,1.11410559]
[1738083181693,0.29879287,669.36,666.92,1.11410559]
[1738083181895,1.5617754,669.33,666.92,1.11410559]
[1738083182688,0.27473403,669.32,666.92,1.11410559]
[1738083183090,0.27473403,669.32,667.43,1.11410559]
[1738083185499,1.5617754,669.33,667.43,1.11410559]
[1738083185699,0.27486788,669.32,667.43,1.11410559]
[1738083186296,0.27486788,669.32,667.2,1.11410559]
[1738083187197,1.5617754,669.33,667.2,1.11410559]
[1738083187398,0.27482291,669.31,667.2,1.11410559]
[1738083187598,0.27482291,669.3,667.2,1.11410559]
[1738083187795,1.5617754,669.33,667.2,1.11410559]
[1738083188100,0.27483631,669.32,667.2,1.11410559]
[1738083189003,0.27484022,669.31,667.2,1.11410559]
[1738083189198,0.27484022,669.32,667.2,1.11410559]
[1738083189502,0.27484022,669.31,667.2,1.11410559]
[1738083189699,0.27484022,669.32,667.24,1.11410559]
[1738083189903,0.27484022,669.31,667.24,1.11410559]
[1738083190099,0.27484022,669.32,667.24,1.11410559]
[1738083190298,0.27484022,669.31,667.24,1.11410559]
[1738083190499,0.27484022,669.32,667.24,1.11410559]
[1738083192307,0.27484022,669.32,667.39,1.11410559]
[1738083194301,1.5617754,669.33,667.39,1.11410559]
[1738083195000,0.29881519,669.31,667.4,0.29967036]
[1738083195897,0.27485283,669.3,667.4,0.29967036]
[1738083196198,0.29882859,669.28,667.4,0.29967036]
[1738083196505,0.27485283,669.27,667.4,0.29967036]
[1738083196704,0.27485283,669.26,667.4,0.29967036]
[1738083197008,0.27485283,669.25,667.4,0.29967036]
[1738083197306,0.27485283,669.24,667.4,0.29967036]
[1738083197507,0.27485283,669.24,667.65,1.11410559]
[1738083198005,0.29885538,669.22,667.65,1.11410559]
[1738083198202,0.27485283,669.21,667.65,1.11410559]
[1738083198405,0.29886878,669.19,667.65,1.11410559]
[1738083199007,0.27484333,669.18,667.65,1.11410559]
[1738083199207,0.29887771,669.17,667.65,1.11410559]
[1738083201103,0.29887771,669.17,667.4,0.29967036]
[1738083203908,0.27484329,669.16,667.4,0.29967036]
[1738083204108,0.29889111,669.14,667.4,0.29967036]
[1738083204308,0.27484329,669.13,667.4,0.29967036]
[1738083204509,0.29890004,669.12,667.4,0.29967036]
[1738083204912,0.27484329,669.11,667.4,0.29967036]
[1738083205612,0.29890898,669.1,667.4,0.29967036]
[1738083205809,0.27484329,669.09,667.4,0.29967036]
[1738083206008,0.29891791,669.08,667.4,0.29967036]
[1738083206207,0.27484329,669.07,667.4,0.29967036]
[1738083207010,0.29892685,669.06,667.4,0.29967036]
[1738083207312,1.83705687,669.05,667.4,0.29967036]
[1738083207511,0.27484329,669.04,667.4,0.29967036]
[1738083207710,0.29894025,669.03,667.4,0.29967036]
[1738083207907,0.27484329,669.02,667.4,0.29967036]
[1738083208110,0.29894919,669.01,667.4,0.29967036]
[1738083208311,0.27484329,669.0,667.4,0.29967036]
[1738083208512,0.29895813,668.99,667.4,0.29967036]
[1738083209611,0.29895813,668.99,667.49,1.11410559]
[1738083209816,0.29895813,668.99,667.5,0.29962546]
[1738083212917,0.29895813,668.99,667.53,1.11410559]
[1738083214719,0.29895813,668.99,667.54,0.29960751]
[1738083219820,0.29895813,668.99,667.82,1.11410559]
[1738083222719,0.29895813,668.99,667.84,1.11410559]
[1738083226130,0.29895813,668.99,667.74,1.11410559]
[1738083226131,0.29895813,668.99,667.86,1.11410559]
[1738083229124,0.29895813,668.99,667.66,1.11410559]
[1738083232426,0.29895813,668.99,667.67,0.29954917]
[1738083232624,0.29895813,668.99,667.72,1.11410559]
[1738083232824,0.29895813,668.99,667.73,0.29952226]
[1738083242536,1.56137248,669.33,667.73,0.29952226]
[1738083242937,1.86017874,669.33,667.73,0.29952226]
[1738083243137,1.86017874,669.33,668.02,1.11410559]
[1738083244237,0.29880626,669.33,668.02,1.11410559]
[1738083246740,0.29880626,669.33,668.32,1.11555631]
[1738083250148,0.29880626,669.33,668.17,1.11555631]
[1738083252548,0.29880626,669.33,667.85,1.11555631]
[1738083254546,0.29880626,669.33,667.86,1.11555631]
[1738083255950,1.56108648,669.32,667.87,0.29945947]
[1738083257849,1.56108648,669.32,667.88,1.11555631]
[1738083258049,1.56108648,669.32,667.89,0.2994505]
[1738083258843,1.85989721,669.32,667.89,0.2994505]
[1738083259043,0.2747003,669.31,667.89,0.2994505]
[1738083261144,1.85989721,669.32,667.89,0.2994505]
[1738083261348,0.27470415,669.31,667.89,0.2994505]
[1738083261552,0.27470415,669.31,668.04,1.11555631]
[1738083262951,1.85989721,669.32,668.04,1.11555631]
[1738083263151,0.27469409,669.31,668.04,1.11555631]
[1738083263350,1.85989721,669.32,668.04,1.11555631]
[1738083265051,1.85989721,669.32,668.21,1.11555631]
[1738083265653,0.29881519,669.31,668.21,1.11555631]
[1738083267354,0.29881519,669.31,668.03,1.11555631]
[1738083269649,0.29881519,669.31,668.17,1.11555631]
[1738083272751,0.29881519,669.31,668.14,1.11555631]
[1738083275761,0.29881519,669.31,667.89,1.41355609]
[1738083275762,0.29881519,669.31,668.13,1.11555631]
[1738083278368,0.29881519,669.31,668.16,1.11555631]
[1738083282174,0.27472241,669.3,668.16,1.11555631]
[1738083284670,0.27472241,669.3,668.3,1.11555631]
[1738083286375,0.29882412,669.29,668.3,1.11555631]
[1738083286577,0.27472241,669.28,668.3,1.11555631]
[1738083287373,0.27472241,669.28,668.31,1.11555631]
[1738083287577,0.27473201,669.27,668.31,1.11555631]
[1738083287778,0.27473201,669.28,668.31,1.11555631]
[1738083288580,0.29882412,669.29,668.31,1.11555631]
[1738083289382,0.27473193,669.28,668.31,1.11555631]
[1738083289583,0.29882412,669.29,668.31,1.11555631]
[1738083290480,0.29882412,669.29,668.29,1.11555631]
[1738083292482,0.27473006,669.28,668.29,1.11555631]
[1738083292781,0.29882412,669.29,668.29,1.11555631]
[1738083292982,0.29882412,669.29,668.32,1.11555631]
[1738083295883,0.29882412,669.29,668.31,1.11555631]
[1738083298784,0.29882412,669.29,668.22,1.11555631]
[1738083304488,1.56098144,669.28,668.37,1.11555631]
[1738083307289,0.29882412,669.29,668.2,1.11555631]
[1738083312126,0.29882412,669.29,668.29,1.11555631]
[1738083317531,0.29882412,669.29,668.41,1.11555631]
[1738083318728,0.29882412,669.29,667.9,0.7114567]
[1738083318929,1.56037485,669.63,667.9,0.7114567]
[1738083320633,0.29867686,669.62,667.9,0.7114567]
[1738083321132,0.29867686,669.62,668.4,1.11474708]
[1738083323134,0.27460069,669.61,668.4,1.11474708]
[1738083323531,0.29867686,669.62,668.4,1.11474708]
[1738083323728,0.27459562,669.61,668.4,1.11474708]
[1738083325035,0.29867686,669.62,668.4,1.11474708]
[1738083330209,0.29867686,669.62,668.47,1.1147121]
[1738083332814,0.29867686,669.62,668.4,1.11474708]
[1738083332815,0.29867686,669.62,668.45,1.1147121]
[1738083334410,0.27462469,669.61,668.45,1.1147121]
[1738083335315,0.2746279,669.6,668.45,1.1147121]
[1738083335509,0.2746279,669.61,668.45,1.1147121]
[1738083335813,0.2746279,669.6,668.45,1.1147121]
[1738083336016,0.29867686,669.62,668.45,1.1147121]
[1738083336417,0.29867686,669.62,668.4,1.11474708]
[1738083338318,1.56051479,669.61,668.4,1.11474708]
[1738083338519,0.29868578,669.6,668.4,1.11474708]
[1738083341419,0.27466962,669.59,668.4,1.11474708]
[1738083341621,0.2986947,669.58,668.4,1.11474708]
[1738083341919,0.27466962,669.57,668.4,1.11474708]
[1738083342117,0.29870362,669.56,668.4,1.11474708]
[1738083342314,0.27466962,669.55,668.4,1.11474708]
[1738083342519,0.29871254,669.54,668.4,1.11474708]
[1738083345624,0.27468564,669.53,668.4,1.11474708]
[1738083345822,0.29872147,669.52,668.4,1.11474708]
[1738083348523,1.56068975,669.51,668.4,1.11474708]
[1738083348717,0.29873039,669.5,668.4,1.11474708]
[1738083349324,0.27469496,669.49,668.4,1.11474708]
[1738083349519,0.29873932,669.48,668.4,1.11474708]
[1738083350123,0.27468042,669.47,668.4,1.11474708]
[1738083350323,0.29874824,669.46,668.4,1.11474708]
[1738083350524,0.27468042,669.45,668.4,1.11474708]
[1738083350924,0.29875717,669.44,668.4,1.11474708]
[1738083351123,0.27468042,669.43,668.4,1.11474708]
[1738083351327,0.29876609,669.42,668.4,1.11474708]
[1738083358727,1.56066642,669.41,668.4,1.11474708]
[1738083361131,0.29876609,669.42,668.4,1.11474708]
[1738083365133,0.29876609,669.42,668.48,1.1147121]
[1738083367526,0.29876609,669.42,668.47,1.1147121]
[1738083370938,0.29876609,669.42,668.59,1.1147121]
[1738083373040,0.29876609,669.42,668.43,1.1147121]
[1738083377842,0.29876609,669.42,668.4,1.11474708]
[1738083383044,0.29876609,669.42,668.48,1.1147121]
[1738083385550,0.29876609,669.42,668.44,1.1147121]
[1738083388157,0.29876609,669.42,668.49,1.1147121]
[1738083390753,1.10819932,669.87,668.49,1.1147121]
[1738083390968,0.57310592,669.86,668.49,1.1147121]
[1738083391157,0.57311037,669.85,668.65,1.1147121]
[1738083391350,0.2985743,669.85,668.65,1.1147121]
[1738083393755,0.2985743,669.85,668.45,1.11490608]
[1738083393756,0.2985743,669.85,668.74,1.1147121]
[1738083396352,1.55966969,669.84,668.74,1.1147121]
[1738083399659,1.55966969,669.84,668.77,1.1147121]
[1738083402056,1.55966969,669.84,668.5,1.1147121]
[1738083402255,1.55966969,669.84,668.51,0.29917278]
[1738083403254,0.2985743,669.85,668.51,0.29917278]
[1738083405561,0.2985743,669.85,668.55,1.1147121]
[1738083405761,0.2985743,669.85,668.56,0.29915041]
[1738083413764,1.56008921,669.84,668.56,0.29915041]
[1738083414869,0.29858322,669.83,668.56,0.29915041]
[1738083420266,0.29858322,669.83,668.57,1.1147121]
[1738083421168,0.29858322,669.83,668.57,1.41385803]
[1738083422574,0.29858322,669.83,668.58,0.29914146]
[1738083425775,0.29858322,669.83,668.94,1.1147121]
[1738083428880,0.29858322,669.83,668.89,1.1147121]
[1738083429383,1.10819932,670.4,668.89,1.1147121]
[1738083429581,1.55920964,670.16,668.89,1.1147121]
[1738083432085,1.55920964,670.16,668.58,0.29914146]
[1738083432086,1.55920964,670.16,668.85,1.1147121]
[1738083432586,0.298454,670.12,668.85,1.1147121]
[1738083435692,0.298454,670.12,668.58,0.29914146]
[1738083435693,0.298454,670.12,668.66,1.1147121]
[1738083435895,0.298454,670.12,668.67,0.2991012]
[1738083436389,0.27442683,670.11,668.67,0.2991012]
[1738083436990,0.298454,670.12,668.67,0.2991012]
[1738083437188,0.2744276,670.11,668.67,0.2991012]
[1738083437688,0.29846291,670.1,668.67,0.2991012]
[1738083437891,0.2744276,670.09,668.67,0.2991012]
[1738083438081,0.29847182,670.08,668.67,0.2991012]
[1738083438488,0.29847182,670.08,668.73,1.1147121]
[1738083439792,1.55951825,670.07,668.73,1.1147121]
[1738083439987,0.29848073,670.06,668.73,1.1147121]
[1738083440591,0.29848073,670.06,668.67,0.2991012]
[1738083446796,0.27448987,670.05,668.67,0.2991012]
[1738083447195,0.29849409,670.03,668.67,0.2991012]
[1738083447394,0.27448987,670.02,668.67,0.2991012]
[1738083447594,0.298503,670.01,668.67,0.2991012]
[1738083447795,0.27448987,670.0,668.67,0.2991012]
[1738083447998,0.29851191,669.99,668.67,0.2991012]
[1738083448306,0.27451347,669.98,668.67,0.2991012]
[1738083448692,0.29852082,669.97,668.67,0.2991012]
[1738083448896,0.27451347,669.96,668.67,0.2991012]
[1738083449098,0.29852974,669.95,668.67,0.2991012]
[1738083449398,0.27451347,669.94,668.67,0.2991012]
[1738083449596,0.29853865,669.93,668.67,0.2991012]
[1738083449798,0.27451347,669.92,668.67,0.2991012]
[1738083449995,0.29854756,669.91,668.67,0.2991012]
[1738083451699,0.27450561,669.9,668.67,0.2991012]
[1738083452805,0.29855647,669.89,668.67,0.2991012]
[1738083453000,0.27450561,669.88,668.67,0.2991012]
[1738083453897,0.29856539,669.87,668.67,0.2991012]
[1738083454101,0.27450561,669.86,668.67,0.2991012]
[1738083454301,0.2985743,669.85,668.67,0.2991012]
[1738083454502,0.27450561,669.84,668.67,0.2991012]
[1738083454704,0.29858322,669.83,668.67,0.2991012]
[1738083454900,0.27450561,669.82,668.67,0.2991012]
[1738083455102,0.29859213,669.81,668.67,0.2991012]
[1738083462615,0.29859213,669.81,668.69,1.1147121]
[1738083466318,0.29859213,669.81,668.71,1.1147121]
[1738083468620,0.29859213,669.81,668.85,1.1147121]
[1738083474824,0.29859213,669.81,668.9,1.1147121]
[1738083477829,0.29859213,669.81,668.97,1.1147121]
[1738083481327,0.29859213,669.81,668.98,1.1147121]
[1738083487327,0.29859213,669.81,669.0,1.1147121]
[1738083489125,1.55933191,670.04,669.0,1.1147121]
[1738083489829,1.55933191,670.04,668.81,1.11490608]
[1738083489830,1.55933191,670.04,669.03,1.1147121]
[1738083493234,1.55933191,670.04,669.06,1.1147121]
[1738083493837,1.10819932,670.33,669.06,1.1147121]
[1738083494034,1.55916889,670.14,669.06,1.1147121]
[1738083494231,0.29836496,670.32,669.06,1.1147121]
[1738083494435,0.27435395,670.31,669.06,1.1147121]
[1738083494635,1.55911068,670.13,669.06,1.1147121]
[1738083494836,0.29837386,670.3,669.06,1.1147121]
[1738083495036,0.274354,670.29,669.06,1.1147121]
[1738083495237,0.29838276,670.28,669.06,1.1147121]